bitfinex-derivatives/quotes_ETHF0:USTF0_20210703
["timestamp","ask_amount","ask_price","bid_price","bid_amount"]
[1625286307220,4.14740166,2129.3,2129.2,47.5628]
[1625286307473,4.14740166,2129.3,2129.0,2.20527]
[1625286307920,2.20527,2129.3,2129.0,2.20527]
[1625286308680,4.14774896,2129.3,2129.0,2.20527]
[1625286308878,4.14774896,2129.3,2129.2,2.20527]
[1625286310893,1.94247896,2129.3,2129.2,4.97097]
[1625286311185,5.81273092,2129.6,2129.2,4.97097]
[1625286311186,1.94286237,2129.5,2129.2,4.97097]
[1625286311488,1.94286237,2129.5,2129.4,43.6881]
[1625286311836,1.94286237,2129.5,2129.4,60.705481]
[1625286312036,4.14804102,2129.6,2129.4,60.705481]
[1625286312787,4.14804102,2129.6,2129.4,17.017381]
[1625286312939,4.14804102,2129.6,2129.5,2.20527]
[1625286313190,1.94277102,2129.6,2129.5,19.325614]
[1625286313788,1.9428144,2129.7,2129.6,39.4656]
[1625286313888,1.9428144,2129.7,2129.5,19.325614]
[1625286314138,1.9428144,2129.7,2129.5,2.20527]
[1625286314639,0.3855144,2129.7,2129.6,56.600919]
[1625286314890,0.3855144,2129.7,2129.6,58.806189]
[1625286316092,1.44e-05,2129.7,2129.6,58.806189]
[1625286316594,2.77530633,2130.0,2129.6,58.806189]
[1625286316945,2.77530633,2130.0,2129.9,2.20527]
[1625286317046,2.77530633,2130.0,2129.9,4.92547]
[1625286318251,2.77501935,2130.1,2129.9,4.92547]
[1625286318951,4.98028935,2130.1,2130.0,2.20527]
[1625286319603,6.37143677,2130.1,2130.0,2.20527]
[1625286321660,3.59641742,2130.1,2130.0,2.20527]
[1625286322464,1.39114742,2130.1,2130.0,2.20527]
[1625286323564,4.16544694,2130.1,2130.0,2.20527]
[1625286325334,2.77429952,2130.1,2130.0,2.20527]
[1625286331452,2.77429952,2130.1,2130.0,47.68277]
[1625286331554,3.60616888,2130.2,2130.0,47.68277]
[1625286331702,3.60616888,2130.2,2130.0,2.20527]
[1625286332505,7.75322212,2130.6,2130.0,2.20527]
[1625286333060,7.75322212,2130.6,2130.5,2.20527]
[1625286333260,2.20527,2130.6,2130.5,2.20527]
[1625286333509,8.76862298,2130.6,2130.5,2.20527]
[1625286334410,8.76862298,2130.6,2130.0,2.20527]
[1625286334714,13.20593127,2130.6,2130.0,2.20527]
[1625286335011,6.56327384,2130.5,2130.0,2.20527]
[1625286335162,2.20527,2130.3,2130.0,2.20527]
[1625286335364,2.77321149,2130.1,2130.0,2.20527]
[1625286335462,5.67121149,2130.1,2130.0,2.20527]
[1625286335762,7.06238004,2130.1,2130.0,2.20527]
[1625286337072,9.26765004,2130.1,2130.0,2.20527]
[1625286337170,57.60325004,2130.1,2130.0,2.20527]
[1625286337323,58.43542229,2130.1,2130.0,2.20527]
[1625286338324,10.09982229,2130.1,2130.0,2.20527]
[1625286340942,6.49443855,2130.1,2130.0,2.20527]
[1625286341443,10.09995571,2130.1,2130.0,2.20527]
[1625286344701,10.09995571,2130.1,2129.8,2.20527]
[1625286344905,10.09995571,2130.1,2128.9,14.7874]
[1625286345105,6.56160437,2130.0,2128.8,14.2036]
[1625286345204,2.20527,2129.2,2129.0,2.20527]
[1625286345308,4.91827,2129.2,2129.0,2.20527]
[1625286345658,42.8203,2129.1,2129.0,2.20527]
[1625286345754,4.91827,2129.2,2129.0,2.20527]
[1625286349615,2.20527,2129.2,2129.0,2.20527]
[1625286358515,2.20527,2129.2,2129.1,52.6666]
[1625286358863,2.20527,2129.4,2129.1,52.6666]
[1625286359265,2.20527,2129.4,2129.3,2.20527]
[1625286359364,2.20527,2129.4,2129.3,4.54047]
[1625286360570,2.77269369,2129.7,2129.3,4.54047]
[1625286360773,2.77263961,2129.8,2129.3,4.54047]
[1625286361269,4.97790961,2129.8,2129.6,2.20527]
[1625286363326,4.97790961,2129.8,2129.7,2.20527]
[1625286363426,2.20527,2129.8,2129.7,2.20527]
[1625286363828,2.77245191,2130.0,2129.7,50.95797]
[1625286364583,1.38615934,2129.8,2129.7,50.95797]
[1625286364728,1.38615934,2129.8,2129.7,2.20527]
[1625286365283,3.59142934,2129.8,2129.7,2.20527]
[1625286367035,3.59142934,2129.8,2129.7,52.29047]
[1625286368151,1.38615934,2129.8,2129.7,52.29047]
[1625286368654,1.38611025,2129.9,2129.7,52.29047]
[1625286368955,1.38604862,2130.0,2129.7,52.29047]
[1625286369153,1.38604862,2130.0,2129.8,19.859015]
[1625286369404,1.38604862,2130.0,2129.9,2.20527]
[1625286370612,3.59115964,2130.2,2129.9,2.20527]
[1625286370962,2.20527,2130.2,2129.9,2.20527]
[1625286371061,1.38585041,2130.3,2129.9,2.20527]
[1625286371411,2.77170082,2130.5,2130.2,2.20527]
[1625286371766,1.38584151,2130.3,2130.2,2.20527]
[1625286372569,1.38553769,2130.4,2130.2,2.20527]
[1625286373473,3.59080769,2130.4,2130.3,2.20527]
[1625286373573,3.59080769,2130.4,2130.3,4.87997]
[1625286377288,3.59080769,2130.4,2130.3,46.11507]
[1625286377688,3.59080769,2130.4,2130.3,4.87997]
[1625286377940,2.20527,2130.4,2130.3,4.87997]
[1625286379741,2.20527,2130.4,2130.3,49.85507]
[1625286380994,2.20527,2130.4,2130.3,66.89926]
[1625286381452,1.38443745,2130.7,2130.3,66.89926]
[1625286382553,4.9741449,2130.9,2130.3,66.89926]
[1625286382554,1.38407377,2130.8,2130.3,66.89926]
[1625286383503,1.38407377,2130.8,2130.7,2.20527]
[1625286384611,3.58897621,2130.9,2130.7,2.20527]
[1625286384859,1.38370709,2130.8,2130.7,2.20527]
[1625286385732,2.20527,2130.9,2130.7,2.20527]
[1625286385928,2.20527,2130.9,2130.7,19.107185]
[1625286386930,2.20527,2130.9,2130.8,55.5071]
[1625286387032,2.20527,2130.9,2130.8,58.0068]
[1625286387229,2.20527,2130.9,2130.8,75.107636]
[1625286387593,2.20527,2130.9,2130.8,77.312906]
[1625286388646,2.20527,2130.9,2130.8,21.805806]
[1625286389146,2.20527,2130.9,2130.8,4.70497]
[1625286390720,2.20527,2130.9,2130.8,45.74257]
[1625286392529,2.20527,2130.9,2130.8,4.70497]
[1625286392826,2.20527,2130.9,2130.8,21.734666]
[1625286392927,2.20527,2130.9,2130.8,19.234966]
[1625286393026,2.20527,2130.9,2130.8,22.647566]
[1625286393130,2.20527,2130.9,2130.8,5.61787]
[1625286395335,2.20527,2130.9,2130.8,2.20527]
[1625286397039,2.20527,2130.9,2130.8,53.38457]
[1625286401771,2.20527,2130.9,2130.8,2.20527]
[1625286404474,2.20527,2130.9,2130.8,51.69287]
[1625286405030,2.20527,2130.9,2130.8,68.80074]
[1625286418989,1.0,2131.9,2130.8,68.80074]
[1625286419090,1.0,2131.9,2130.8,73.80074]
[1625286419191,2.75622707,2132.3,2130.8,73.80074]
[1625286419192,2.1654529,2132.3,2130.8,74.80074]
[1625286419441,1.37768474,2132.6,2130.8,74.80074]
[1625286419792,2.20527,2132.3,2132.2,5.48677]
[1625286420091,2.20527,2132.3,2132.2,6.48677]
[1625286420295,2.20527,2132.3,2132.2,64.37097]
[1625286421194,2.20527,2132.3,2132.2,6.48677]
[1625286424798,2.20527,2132.3,2132.2,5.48677]
[1625286427658,52.16927,2132.3,2132.2,5.48677]
[1625286428011,52.16927,2132.3,2132.2,7e-05]
[1625286428111,55.57117,2132.3,2131.9,3.20527]
[1625286428261,55.57117,2132.3,2130.8,1.0]
[1625286428362,55.57117,2132.3,2130.6,1.0]
[1625286428912,44.8593,2130.8,2130.6,1.0]
[1625286429324,48.6107,2130.8,2130.6,1.0]
[1625286429427,48.6107,2130.8,2129.0,61.682]
[1625286429832,2.20527,2130.5,2130.4,2.20527]
[1625286430128,2.20527,2130.5,2130.4,19.108095]
[1625286431829,4.41054,2130.5,2130.4,19.108095]
[1625286433340,4.41054,2130.5,2130.4,20.108095]
[1625286433491,4.41054,2130.5,2130.4,19.108095]
[1625286433639,70.0992,2131.6,2130.4,19.108095]
[1625286433842,2.20527,2130.7,2130.4,19.108095]
[1625286434241,2.20527,2130.7,2130.5,1.0]
[1625286436092,2.20527,2130.7,2130.6,16.901184]
[1625286436243,2.20527,2130.7,2130.6,17.901184]
[1625286436492,2.20527,2130.7,2130.5,16.987019]
[1625286436744,2.20527,2130.7,2130.4,2.20527]
[1625286436845,2.20527,2130.7,2130.6,16.942996]
[1625286437048,2.20527,2130.7,2130.5,16.956948]
[1625286437403,2.20527,2130.7,2130.6,16.900714]
[1625286437647,2.20527,2130.7,2130.5,17.161158]
[1625286437949,2.20527,2130.7,2130.6,16.91122]
[1625286438249,2.20527,2130.7,2130.6,1.0]
[1625286438500,2.20527,2130.7,2130.6,18.17793]
[1625286438798,2.20527,2130.7,2130.6,17.17793]
[1625286439098,2.20527,2130.7,2130.5,17.152607]
[1625286439349,2.20527,2130.7,2130.6,17.076347]
[1625286439705,2.20527,2130.7,2130.6,1.0]
[1625286439955,2.20527,2130.7,2130.6,18.033643]
[1625286441106,2.20527,2130.7,2130.6,17.033643]
[1625286441458,5.67017,2130.7,2130.5,17.048009]
[1625286441707,5.67017,2130.7,2130.6,16.907075]
[1625286441806,5.67017,2130.7,2130.6,17.907075]
[1625286441956,5.67017,2130.7,2130.6,1.0]
[1625286442309,5.67017,2130.7,2130.6,17.925018]
[1625286442408,5.67017,2130.7,2130.6,16.925018]
[1625286442608,5.67017,2130.7,2130.5,17.154464]
[1625286442707,5.67017,2130.7,2130.6,1.0]
[1625286442908,5.67017,2130.7,2130.6,18.157992]
[1625286443207,5.67017,2130.7,2130.6,1.0]
[1625286443459,5.67017,2130.7,2130.6,17.934685]
[1625286444360,5.67017,2130.7,2130.6,16.934685]
[1625286444613,5.67017,2130.7,2130.4,2.20527]
[1625286444911,60.54187,2130.7,2130.4,2.20527]
[1625286445313,5.67017,2130.7,2130.4,2.20527]
[1625286445565,5.67017,2130.7,2130.4,3.20527]
[1625286445916,2.20527,2130.6,2130.4,3.20527]
[1625286447279,54.75237,2130.6,2130.4,3.20527]
[1625286447380,54.75237,2130.6,2130.4,2.20527]
[1625286448833,54.75237,2130.6,2130.2,2.20527]
[1625286448933,54.75237,2130.6,2129.0,4.759]
[1625286449182,54.75237,2130.6,2128.9,29.9742]
[1625286449582,54.75237,2130.6,2129.0,16.975139]
[1625286449883,2.20527,2130.0,2129.8,2.20527]
[1625286449985,51.52257,2130.0,2129.8,3.20527]
[1625286450585,2.20527,2130.0,2129.8,3.20527]
[1625286451086,2.20527,2130.0,2129.8,2.20527]
[1625286451490,54.18997,2130.0,2129.8,2.20527]
[1625286451945,2.20527,2129.9,2129.8,2.20527]
[1625286452550,2.20527,2129.9,2129.8,3.20527]
[1625286452846,2.20527,2129.9,2129.8,2.20527]
[1625286459615,2.20527,2129.9,2129.0,1.0]
[1625286460016,2.20527,2129.9,2129.4,2.20527]
[1625286460116,2.20527,2129.9,2129.4,3.20527]
[1625286460314,2.20527,2129.9,2129.5,17.036101]
[1625286460414,2.20527,2129.9,2129.5,20.675401]
[1625286460916,2.20527,2129.9,2129.5,19.675401]
[1625286461118,2.20527,2129.9,2129.5,20.675401]
[1625286461980,2.20527,2129.6,2129.5,20.675401]
[1625286465443,2.20527,2129.6,2129.5,2.6393]
[1625286465591,5.48677,2129.6,2128.9,20.2698]
[1625286466042,2.20527,2129.0,2128.9,22.47507]
[1625286466193,2.20527,2129.0,2128.9,3.20527]
[1625286477065,2.20527,2129.0,2128.9,20.208862]
[1625286478768,2.20527,2129.0,2128.9,23.032962]
[1625286483388,2.20527,2129.0,2128.9,20.208862]
[1625286485798,2.20527,2129.0,2128.9,19.208862]
[1625286487399,4.97447,2129.0,2128.9,19.208862]
[1625286487651,62.36747,2129.0,2128.9,19.208862]
[1625286488100,4.97447,2129.0,2128.9,19.208862]
[1625286488953,52.13387,2129.0,2128.9,19.208862]
[1625286489505,52.13387,2129.0,2128.9,2.20527]
[1625286493621,52.13387,2129.0,2128.7,2.20527]
[1625286494423,2.20527,2128.8,2128.7,2.20527]
[1625286498544,2.20527,2128.8,2128.3,2.20527]
[1625286499949,2.20527,2128.8,2128.4,1.0]
[1625286500046,53.3591,2128.5,2128.3,2.20527]
[1625286500450,2.20527,2128.4,2128.3,2.20527]
[1625286500549,5.16137,2128.4,2128.3,2.20527]
[1625286500749,5.16137,2128.4,2128.3,3.20527]
[1625286501551,5.16137,2128.4,2128.3,2.20527]
[1625286511507,59.18817,2128.4,2128.3,2.20527]
[1625286512303,59.18817,2128.4,2128.1,2.20527]
[1625286512605,2.20527,2128.2,2128.1,2.20527]
[1625286514409,51.3324,2127.8,2127.7,2.20527]
[1625286514609,53.53767,2127.8,2127.7,2.20527]
[1625286514860,53.53767,2127.8,2127.3,15.0344]
[1625286514959,53.53767,2127.8,2127.4,1.0]
[1625286516715,2.20527,2127.5,2127.4,1.0]
[1625286518218,2.20527,2127.5,2127.4,17.92203]
[1625286518470,2.20527,2127.5,2127.4,1.0]
[1625286519125,50.09757,2127.5,2127.4,1.0]
[1625286519234,2.20527,2127.5,2127.4,1.0]
[1625286519977,7.99932289,2130.5,2127.4,1.0]
[1625286520126,1.93142108,2129.6,2127.4,4.5414]
[1625286520228,1.93138863,2129.7,2127.4,4.5414]
[1625286520477,1.93138863,2129.7,2127.5,17.140986]
[1625286520627,49.5501,2129.0,2127.6,54.7024]
[1625286520728,49.5501,2129.0,2128.1,2.20527]
[1625286520828,2.20527,2128.2,2128.1,3.20527]
[1625286520980,2.20527,2128.2,2128.1,6.33157]
[1625286521488,1.93136193,2129.9,2128.1,6.33157]
[1625286521581,1.93128886,2130.0,2128.1,6.33157]
[1625286521736,1.93128886,2130.0,2128.1,23.442313]
[1625286521882,1.93128886,2130.0,2128.7,1.0]
[1625286522132,55.2121,2130.1,2128.7,18.143273]
[1625286522789,55.2121,2130.1,2128.7,20.348543]
[1625286522790,4.41054,2128.8,2128.7,20.348543]
[1625286536583,55.2121,2130.1,2128.7,20.348543]
[1625286536684,55.2121,2130.1,2128.7,23.598143]
[1625286536831,2.20527,2129.4,2129.1,2.20527]
[1625286536932,2.20527,2129.4,2129.2,1.0]
[1625286537032,2.20527,2129.4,2129.2,3.5322]
[1625286537133,2.20527,2129.4,2129.2,20.498705]
[1625286538383,2.20527,2129.4,2129.2,19.498705]
[1625286538785,2.20527,2129.4,2129.2,2.5322]
[1625286538885,2.20527,2129.4,2129.1,2.20527]
[1625286538985,5.27097,2129.4,2129.1,2.20527]
[1625286539386,5.27097,2129.4,2128.7,6.96427]
[1625286539498,5.27097,2129.4,2128.8,1.0]
[1625286539585,5.27097,2129.4,2128.7,6.96427]
[1625286539940,5.27097,2129.4,2128.8,17.186839]
[1625286540891,4.41054,2128.9,2128.8,17.186839]
[1625286541405,7.33404,2128.9,2128.7,4.759]
[1625286542253,7.33404,2128.9,2128.4,1.0]
[1625286542858,7.33404,2128.9,2128.2,1.9290319]
[1625286542859,7.33404,2128.9,2128.8,3.20527]
[1625286544010,7.33404,2128.9,2128.8,20.165215]
[1625286545817,7.33404,2128.9,2128.8,3.20527]
[1625286548070,7.33404,2128.9,2128.8,2.20527]
[1625286548170,7.33404,2128.9,2128.6,2.20527]
[1625286548521,48.96124,2128.9,2128.6,2.20527]
[1625286548873,48.96124,2128.9,2128.3,4.759]
[1625286548973,4.41054,2128.4,2128.3,4.759]
[1625286549075,7.46904,2128.4,2128.3,4.759]
[1625286549224,7.46904,2128.4,2128.3,5.759]
[1625286549325,7.46904,2128.4,2128.3,4.759]
[1625286549828,7.46904,2128.4,2128.1,2.20527]
[1625286550228,7.46904,2128.4,2128.2,1.0]
[1625286550482,7.46904,2128.4,2127.9,4.14336857]
[1625286550930,2.20527,2128.0,2127.9,4.14336857]
[1625286551137,2.20527,2128.0,2127.9,8.90236857]
[1625286551235,2.20527,2128.0,2127.9,9.90236857]
[1625286551336,2.20527,2128.0,2127.9,10.73265875]
[1625286551435,2.20527,2128.0,2127.9,64.69385875]
[1625286552487,2.20527,2128.0,2127.9,10.73265875]
[1625286554411,2.20527,2128.0,2127.9,7.96427]
[1625286556172,2.20527,2128.0,2127.9,3.20527]
[1625286559583,2.20527,2128.0,2127.9,5.78627]
[1625286559684,1.9397469,2129.3,2127.9,5.78627]
[1625286559932,1.93953882,2129.6,2127.9,22.855103]
[1625286560281,1.93953882,2129.6,2128.6,57.1894]
[1625286560382,1.93953882,2129.6,2128.7,1.0]
[1625286560484,1.9394585,2129.7,2128.7,1.0]
[1625286560584,1.9394585,2129.7,2128.7,18.113431]
[1625286560885,16.16859005,2129.8,2128.7,18.113431]
[1625286560983,2.20527,2129.0,2128.9,2.20527]
[1625286561784,2.20527,2129.0,2128.9,3.20527]
[1625286562891,2.20527,2129.0,2128.9,20.202365]
[1625286562991,4.41054,2129.0,2128.9,20.202365]
[1625286565297,4.41054,2129.0,2128.9,3.20527]
[1625286565401,4.41054,2129.0,2128.9,2.20527]
[1625286565900,4.41054,2129.0,2128.9,3.20527]
[1625286566007,4.41054,2129.0,2128.9,2.20527]
[1625286571018,4.41054,2129.0,2128.7,2.20527]
[1625286571122,6.80584,2129.0,2128.7,2.20527]
[1625286571821,46.5802,2128.8,2128.7,2.20527]
[1625286573973,4.41054,2129.0,2128.7,2.20527]
[1625286575880,4.41054,2129.0,2128.4,2.20527]
[1625286576031,11.80784,2129.0,2128.2,1.9381748]
[1625286576634,53.777,2128.3,2128.2,1.9381748]
[1625286576730,3.0195,2128.3,2128.2,1.9381748]
[1625286576832,3.0195,2128.3,2127.8,1.94024437]
[1625286576932,3.0195,2128.3,2127.9,1.0]
[1625286577033,2.20527,2128.3,2128.2,4.41054]
[1625286577236,2.20527,2128.3,2128.2,2.20527]
[1625286584367,43.65677,2128.3,2128.2,2.20527]
[1625286585069,2.20527,2128.3,2128.2,2.20527]
[1625286587021,2.20527,2128.3,2128.2,5.49737]
[1625286587325,2.20527,2128.5,2128.2,5.49737]
[1625286587523,2.20527,2128.5,2128.2,7.43597182]
[1625286589127,2.20527,2128.8,2128.4,3.20527]
[1625286590977,2.20527,2128.8,2128.7,42.4084]
[1625286591079,2.20527,2128.8,2128.7,45.7295]
[1625286591177,2.20527,2128.8,2128.7,47.93477]
[1625286591277,2.20527,2128.8,2128.7,65.10781]
[1625286591982,2.20527,2128.8,2128.7,23.69941]
[1625286592682,2.20527,2128.8,2128.7,19.37831]
[1625286593634,2.20527,2128.8,2128.7,2.20527]
[1625286594485,2.20527,2128.8,2128.4,3.20527]
[1625286594685,2.20527,2128.8,2128.4,2.20527]
[1625286595135,2.20527,2128.5,2128.4,2.20527]
[1625286595888,2.20527,2128.5,2128.4,3.20527]
[1625286596342,2.20527,2128.5,2128.4,2.20527]
[1625286600170,2.20527,2128.5,2128.4,3.20527]
[1625286600879,2.20527,2128.5,2128.4,2.20527]
[1625286603988,2.20527,2128.5,2128.2,2.20527]
[1625286604687,57.291,2128.4,2128.2,2.20527]
[1625286604788,2.20527,2128.5,2128.2,2.20527]
[1625286605188,2.20527,2128.3,2128.2,2.20527]
[1625286610750,2.20527,2128.3,2128.2,3.20527]
[1625286612153,2.20527,2128.5,2128.2,3.20527]
[1625286612908,52.56,2128.4,2128.2,3.20527]
[1625286613321,2.20527,2128.5,2128.2,3.20527]
[1625286613719,2.20527,2128.5,2128.2,6.56257]
[1625286613821,44.1548,2128.4,2128.2,6.56257]
[1625286614321,44.1548,2128.4,2128.2,5.56257]
[1625286615171,44.1548,2128.4,2128.2,2.20527]
[1625286615271,2.20527,2128.3,2128.2,2.20527]
[1625286616028,2.20527,2128.3,2128.2,3.20527]
[1625286618938,2.20527,2128.3,2128.2,2.20527]
[1625286619189,49.18447,2128.3,2128.2,2.20527]
[1625286619589,49.18447,2128.3,2128.2,3.20527]
[1625286619891,49.18447,2128.3,2128.2,2.20527]
[1625286621146,52.77557,2128.3,2127.8,6.96427]
[1625286621244,52.77557,2128.3,2127.8,2.20527]
[1625286621393,52.77557,2128.3,2127.6,1.93356744]
[1625286621497,52.77557,2128.3,2127.4,18.99414237]
[1625286621893,52.77557,2128.3,2127.4,17.05887]
[1625286621995,52.77557,2128.3,2127.5,1.0]
[1625286623196,57.77557,2128.3,2127.4,2.20527]
[1625286623298,4.41054,2127.5,2127.4,2.20527]
[1625286623446,7.29024,2127.5,2127.4,2.20527]
[1625286624151,55.21944,2127.5,2127.4,2.20527]
[1625286624406,55.21944,2127.5,2127.1,2.20527]
[1625286625203,55.21944,2127.5,2126.6,1.93790629]
[1625286625304,2.20527,2126.9,2126.8,2.20527]
[1625286625454,5.21107,2126.9,2126.8,2.20527]
[1625286625554,5.21107,2126.9,2126.8,3.20527]
[1625286626317,5.21107,2126.9,2126.8,58.00557]
[1625286626409,2.20527,2126.9,2126.8,58.00557]
[1625286626607,14.6735,2128.2,2126.8,58.00557]
[1625286626709,14.6735,2128.2,2126.8,61.77247]
[1625286626963,14.6735,2128.2,2126.8,63.7090228]
[1625286627261,14.6735,2128.2,2127.0,1.93501674]
[1625286627410,1.20527,2127.3,2127.2,2.20527]
[1625286627511,14.6735,2128.2,2127.2,2.20527]
[1625286627966,1.93876505,2128.4,2127.2,2.20527]
[1625286628225,1.9392656,2128.3,2127.2,2.20527]
[1625286628628,2.77037943,2128.4,2127.2,2.20527]
[1625286628629,1.93863969,2128.4,2127.2,2.20527]
[1625286629331,2.20527,2127.8,2127.6,2.20527]
[1625286629881,2.20527,2127.8,2127.2,2.20527]
[1625286631333,2.20527,2127.8,2127.5,2.20527]
[1625286633341,2.20527,2127.7,2127.5,2.20527]
[1625286635397,2.20527,2127.7,2127.6,2.20527]
[1625286635848,2.20527,2127.7,2127.6,5.00327]
[1625286638149,48.98357,2127.7,2127.6,5.00327]
[1625286638901,2.20527,2127.7,2127.6,5.00327]
[1625286639553,43.01907,2127.7,2127.6,5.00327]
[1625286639703,43.01907,2127.7,2127.6,2.20527]
[1625286641106,45.67867,2127.7,2127.6,2.20527]
[1625286641603,4.86487,2127.7,2127.6,2.20527]
[1625286641804,4.86487,2127.7,2127.0,1.0]
[1625286641955,4.86487,2127.7,2126.7,6.69063146]
[1625286642203,4.86487,2127.7,2126.7,4.759]
[1625286642405,55.378,2127.5,2126.7,4.759]
[1625286642559,4.86487,2127.7,2126.7,4.759]
[1625286643107,2.20527,2127.7,2126.7,4.759]
[1625286643309,44.78437,2127.7,2126.7,4.759]
[1625286643406,44.78437,2127.7,2127.4,2.20527]
[1625286645218,47.80267,2127.7,2127.1,2.20527]
[1625286645421,2.20527,2127.2,2127.1,2.20527]
[1625286645521,5.20437,2127.2,2127.1,2.20527]
[1625286646980,5.20437,2127.2,2126.0,1.92567573]
[1625286647339,5.20437,2127.2,2125.9,1.92571032]
[1625286647439,2.20527,2126.5,2126.3,2.20527]
[1625286647538,4.62477,2126.5,2126.3,2.20527]
[1625286647639,40.0758,2126.4,2126.3,2.20527]
[1625286649544,42.28107,2126.4,2126.3,2.20527]
[1625286649693,2.20527,2126.4,2126.3,2.20527]
[1625286651601,2.20527,2126.4,2126.3,7e-05]
[1625286651753,2.20527,2126.4,2125.2,1.92591767]
[1625286651900,52.7009,2125.7,2125.2,1.92591767]
[1625286652251,52.7009,2125.7,2125.1,1.92639372]
[1625286652803,2.5289,2125.7,2125.1,1.92639372]
[1625286653002,2.20527,2126.4,2125.1,2.92639372]
[1625286653104,2.20527,2126.4,2125.1,1.92639372]
[1625286653356,41.8804,2125.8,2125.1,1.92639372]
[1625286653605,41.8804,2125.8,2125.7,2.20527]
[1625286654309,2.20527,2125.9,2125.7,2.20527]
[1625286655513,4.41054,2125.9,2125.7,2.20527]
[1625286658276,4.41054,2125.9,2125.7,5.08757]
[1625286658376,44.9319,2125.8,2125.7,5.08757]
[1625286658787,4.41054,2125.9,2125.7,5.08757]
[1625286661537,4.41054,2125.9,2125.7,2.20527]
[1625286664254,45.2783,2125.8,2125.7,2.20527]
[1625286664855,4.41054,2125.9,2125.7,2.20527]
[1625286667360,4.41054,2125.9,2124.8,1.3696157]
[1625286667462,4.41054,2125.9,2124.0,5.47846279]
[1625286667463,7.15864,2125.9,2124.7,4.759]
[1625286667561,2.20527,2125.1,2125.0,2.20527]
[1625286667661,5.63267,2125.1,2125.0,2.20527]
[1625286668011,51.80807,2125.1,2125.0,2.20527]
[1625286668213,5.63267,2125.1,2125.0,2.20527]
[1625286668665,3.4274,2125.1,2125.0,2.20527]
[1625286668763,53.4431,2126.2,2125.0,2.20527]
[1625286669614,4.41054,2125.1,2125.0,2.20527]
[1625286674075,53.4431,2126.2,2125.0,2.20527]
[1625286674984,14.6612,2126.7,2125.0,3.20527]
[1625286675179,14.6612,2126.7,2125.0,7.96427]
[1625286675386,14.6612,2126.7,2125.1,16.961785]
[1625286675586,2.20527,2126.4,2126.3,2.20527]
[1625286675687,2.20527,2126.4,2126.3,5.48477]
[1625286677446,48.64927,2126.4,2126.3,2.20527]
[1625286677599,4.41054,2126.4,2126.3,2.20527]
[1625286678149,4.41054,2126.4,2125.3,15.1989]
[1625286678753,4.41054,2126.4,2125.4,17.019122]
[1625286678902,4.41054,2126.4,2125.4,20.299022]
[1625286679603,2.20527,2126.4,2126.1,2.20527]
[1625286681663,2.20527,2126.2,2126.1,2.20527]
[1625286682915,2.20527,2126.4,2126.1,2.20527]
[1625286683616,4.41054,2126.4,2126.1,2.20527]
[1625286685265,4.41054,2126.4,2126.1,5.20407]
[1625286685669,4.41054,2126.4,2126.2,2.20527]
[1625286686069,15.1602,2127.5,2126.2,2.20527]
[1625286687621,2.20527,2126.9,2126.7,2.20527]
[1625286687720,2.20527,2126.9,2126.7,5.54777]
[1625286691011,5.72437,2126.9,2125.5,5.759]
[1625286691118,5.72437,2126.9,2125.5,4.759]
[1625286691672,2.20527,2126.4,2126.3,2.20527]
[1625286691918,60.40567,2126.4,2126.3,2.20527]
[1625286692418,2.20527,2126.4,2126.3,2.20527]
[1625286692669,2.20527,2126.4,2125.5,4.759]
[1625286692768,4.89317,2126.4,2125.5,4.759]
[1625286693721,2.20527,2126.0,2125.9,2.20527]
[1625286695536,49.59507,2126.0,2125.9,2.20527]
[1625286696079,49.59507,2126.0,2125.7,2.20527]
[1625286697381,2.20527,2126.0,2125.7,2.20527]
[1625286697484,2.20527,2126.0,2124.9,4.759]
[1625286697680,2.20527,2125.3,2125.2,2.20527]
[1625286697881,5.05097,2125.3,2125.2,2.20527]
[1625286702911,49.34097,2125.3,2125.2,2.20527]
[1625286703715,5.05097,2125.3,2125.2,2.20527]
[1625286703964,5.05097,2125.3,2125.0,2.20527]
[1625286704115,5.05097,2125.3,2124.5,16.51312328]
[1625286704423,5.05097,2125.3,2124.5,15.1334]
[1625286704971,56.1702,2124.9,2124.5,15.1334]
[1625286705223,56.1702,2124.9,2124.0,1.38069376]
[1625286705778,2.20527,2124.7,2124.6,2.20527]
[1625286706583,5.05727,2124.7,2124.6,2.20527]
[1625286707785,7.26254,2124.7,2124.6,2.20527]
[1625286710298,2.852,2124.7,2124.6,2.20527]
[1625286710446,14.838,2125.7,2124.6,2.20527]
[1625286711301,2.6879,2126.4,2124.6,2.20527]
[1625286711403,51.39987056,2126.9,2124.6,2.20527]
[1625286711404,1.37304514,2126.9,2124.6,2.20527]
[1625286711552,14.8484,2126.6,2124.6,2.20527]
[1625286711655,14.8484,2126.6,2124.7,17.147047]
[1625286711906,14.8484,2126.6,2125.3,2.20527]
[1625286713808,2.20527,2125.4,2125.3,2.20527]
[1625286715911,2.20527,2125.6,2125.3,2.20527]
[1625286717821,4.41054,2125.6,2125.3,2.20527]
[1625286720028,4.41054,2125.6,2124.7,1.38168405]
[1625286720129,7.84794,2125.6,2124.7,1.38168405]
[1625286720379,7.84794,2125.6,2124.5,15.2947]
[1625286720637,41.296,2125.0,2124.3,16.28202847]
[1625286720730,44.6409,2125.0,2124.4,1.38222626]
[1625286721380,3.3449,2125.0,2124.5,16.997654]
[1625286721931,2.20527,2124.9,2124.8,2.20527]
[1625286722381,53.9278,2125.9,2124.8,2.20527]
[1625286723884,2.20527,2125.0,2124.8,2.20527]